fUST/lending_fUST_20250625
["ID","MTS","AMOUNT","RATE_DAILY","PERIOD"]
[367506487,1750834241508,-460.0,0.00018714,2]
[367506488,1750834241518,-460.0,0.00018714,2]
[367506489,1750834241527,-460.0,0.00018714,2]
[367506490,1750834241536,-28333.04,0.00018714,2]
[367506491,1750834241546,-460.0,0.00018714,2]
[367506492,1750834241555,-1729.3,0.00018714,2]
[367506493,1750834241565,-460.0,0.00018714,2]
[367506494,1750834241576,-460.0,0.00018714,2]
[367506495,1750834241586,-752.41,0.00018714,2]
[367506496,1750834241596,-460.0,0.00018715,2]
[367506497,1750834241605,-762.64,0.00018715,2]
[367506498,1750834241615,-460.0,0.00018715,2]
[367506499,1750834241625,-460.0,0.00018715,2]
[367506500,1750834241634,-613.34,0.00018715,2]
[367506501,1750834241644,-460.0,0.00018715,2]
[367506502,1750834241653,-978.23,0.00018715,2]
[367506503,1750834241663,-460.0,0.00018715,2]
[367506504,1750834241672,-612.85,0.00018715,2]
[367506505,1750834241681,-564.47,0.00018715,2]
[367506506,1750834241691,-460.0,0.00018715,2]
[367506507,1750834241701,-460.0,0.00018715,2]
[367506508,1750834241710,-460.0,0.00018715,2]
[367506509,1750834241720,-460.0,0.00018716,2]
[367506510,1750834241729,-1000.0,0.00018742,2]
[367506511,1750834241739,-861.43909524,0.00018752,2]
[367506512,1750834241748,-285.62279845,0.00018781,2]
[367506513,1750834241759,-151.0,0.000188,2]
[367506514,1750834241769,-848.55,0.0001881,2]
[367506515,1750834241778,-1115.39,0.0001881,2]
[367506516,1750834241787,-1053.33,0.0001881,2]
[367506517,1750834241797,-1132.88,0.0001881,2]
[367506518,1750834241806,-179.02,0.0001881,2]
[367506519,1750834241816,-914.59,0.0001881,2]
[367506520,1750834241825,-813.22,0.0001881,2]
[367506521,1750834241834,-1246.56,0.0001881,2]
[367506522,1750834241846,-460.0,0.0001881,2]
[367506523,1750834241855,-700.09,0.0001881,2]
[367506524,1750834241866,-2274.63964404,0.00018866,2]
[367506525,1750834241876,-503.72718248,0.00018887,2]
[367506526,1750834241886,-460.0,0.00018988,2]
[367506527,1750834241895,-460.0,0.00018988,2]
[367506528,1750834241905,-460.0,0.00018988,2]
[367506529,1750834241916,-460.0,0.00018988,2]
[367506530,1750834241925,-28333.04,0.00018988,2]
[367506531,1750834241934,-438.14,0.00018988,2]
[367506532,1750834241944,-1729.3,0.00018988,2]
[367506533,1750834241953,-460.0,0.00018988,2]
[367506534,1750834241963,-460.0,0.00018988,2]
[367506535,1750834241972,-752.41,0.00018988,2]
[367506536,1750834241982,-419.15,0.00018989,2]
[367506537,1750834241991,-762.64,0.00018989,2]
[367506538,1750834242000,-217.69423885,0.00018989,2]
[367506539,1750834242009,-460.0,0.00018989,2]
[367506540,1750834242018,-613.34,0.00018989,2]
[367506541,1750834242028,-460.0,0.00018989,2]
[367506542,1750834242037,-978.23,0.00018989,2]
[367506543,1750834242047,-460.0,0.00018989,2]
[367506544,1750834242056,-612.85,0.00018989,2]
[367506545,1750834242065,-564.47,0.00018989,2]
[367506546,1750834242074,-460.0,0.00018989,2]
[367506547,1750834242084,-460.0,0.00018989,2]
[367506548,1750834242093,-460.0,0.00018989,2]
[367506549,1750834242102,-160.0,0.0001899,2]
[367506550,1750834242112,-1000.0,0.00019057,2]
[367506551,1750834242121,-848.55,0.00019084,2]
[367506552,1750834242130,-1115.39,0.00019084,2]
[367506553,1750834242139,-1053.33,0.00019084,2]
[367506554,1750834242149,-1132.88,0.00019084,2]
[367506555,1750834242158,-914.59,0.00019084,2]
[367506556,1750834242168,-813.22,0.00019084,2]
[367506557,1750834242177,-1246.56,0.00019084,2]
[367506558,1750834242185,-460.0,0.00019084,2]
[367506559,1750834242195,-700.09,0.00019084,2]
[367506560,1750834242203,-706.5679833,0.00019096,2]
[367506561,1750834242213,-151.0,0.000191,2]
[367506562,1750834242222,-187.0,0.00019103,2]
[367506563,1750834242233,-2274.63964404,0.00019107,2]
[367506564,1750834242242,-371.54184984,0.00019161,2]
[367506565,1750834242251,-1000.0,0.00019161,2]
[367506566,1750834242260,-1000.0,0.00019161,2]
[367506567,1750834242270,-500.0,0.00019164,2]
[367506568,1750834242279,-500.0,0.00019178,2]
[367506569,1750834242289,-500.0,0.00019178,2]
[367506570,1750834242298,-500.0,0.00019178,2]
[367506571,1750834242307,-500.0,0.00019178,2]
[367506572,1750834242317,-513.89509103,0.00019178,2]
[367506573,1750834242326,-332.172672,0.00019178,2]
[367506574,1750834242335,-1000.0,0.0001921,2]
[367506575,1750834242344,-1000.0,0.0001921,2]
[367506576,1750834242354,-671.74,0.00019253,3]
[367506577,1750834242363,-335.88,0.00019253,3]
[367506578,1750834242373,-460.0,0.00019262,2]
[367506579,1750834242382,-460.0,0.00019262,2]
[367506580,1750834242392,-460.0,0.00019262,2]
[367506581,1750834242401,-460.0,0.00019262,2]
[367506582,1750834242411,-28333.04,0.00019262,2]
[367506583,1750834242420,-1729.3,0.00019262,2]
[367506584,1750834242431,-460.0,0.00019262,2]
[367506585,1750834242440,-460.0,0.00019262,2]
[367506586,1750834242450,-752.41,0.00019262,2]
[367506587,1750834242459,-762.64,0.00019263,2]
[367506588,1750834242469,-460.0,0.00019263,2]
[367506589,1750834242479,-613.34,0.00019263,2]
[367506590,1750834242488,-460.0,0.00019263,2]
[367506591,1750834242497,-978.23,0.00019263,2]
[367506592,1750834242507,-460.0,0.00019263,2]
[367506593,1750834242516,-612.85,0.00019263,2]
[367506595,1750834242526,-564.47,0.00019263,2]
[367506596,1750834242535,-460.0,0.00019263,2]
[367506597,1750834242545,-460.0,0.00019263,2]
[367506598,1750834242554,-460.0,0.00019263,2]
[367506599,1750834242563,-187.0,0.0001929,2]
[367506600,1750834242575,-176.01559857,0.0001929,2]
[367506602,1750834242584,-151.0,0.00019315,2]
[367506603,1750834242594,-100000.0,0.00019329,2]
[367506604,1750834242604,-2274.63964404,0.00019348,2]
[367506605,1750834242613,-848.55,0.00019358,2]
[367506606,1750834242622,-1115.39,0.00019358,2]
[367506607,1750834242631,-1053.33,0.00019358,2]
[367506608,1750834242641,-1132.88,0.00019358,2]
[367506611,1750834242650,-914.59,0.00019358,2]
[367506612,1750834242660,-813.22,0.00019358,2]
[367506613,1750834242669,-1246.56,0.00019358,2]
[367506614,1750834242678,-460.0,0.00019358,2]
[367506615,1750834242687,-700.09,0.00019358,2]
[367506616,1750834242696,-151.0,0.0001937,2]
[367506618,1750834242705,-198.0,0.00019397,2]
[367506620,1750834242714,-151.0,0.000194,2]
[367506621,1750834242723,-861.43909524,0.00019437,2]
[367506623,1750834242732,-920.0,0.00019452,2]
[367506624,1750834242741,-151.36624201,0.00019479,2]
[367506625,1750834242751,-151.0,0.00019479,2]
[367506626,1750834242760,-151.0,0.00019479,2]
[367506628,1750834242769,-151.0,0.00019479,2]
[367506630,1750834242778,-500.0,0.00019479,2]
[367506632,1750834242787,-500.0,0.00019479,2]
[367506634,1750834242797,-151.0,0.00019479,2]
[367506636,1750834242806,-500.0,0.00019479,2]
[367506638,1750834242815,-283.5687599,0.00019479,2]
[367506640,1750834242825,-151.57174881,0.00019479,2]
[367506642,1750834242834,-151.52813227,0.00019479,2]
[367506644,1750834242844,-500.0,0.00019479,2]
[367506646,1750834242853,-151.0,0.00019479,2]
[367506648,1750834242862,-198.55525248,0.00019479,2]
[367506650,1750834242871,-151.0,0.00019479,2]
[367506652,1750834242880,-151.0,0.00019479,2]
[367506654,1750834242889,-151.0,0.00019479,2]
[367506656,1750834242899,-500.0,0.00019479,2]
[367506658,1750834242908,-183.28015549,0.00019506,2]
[367506660,1750834242918,-151.0,0.00019506,2]
[367506662,1750834242927,-151.0,0.00019506,2]
[367506664,1750834242937,-500.0,0.00019506,2]
[367506666,1750834242946,-500.0,0.00019506,2]
[367506668,1750834242955,-550.32217431,0.00019506,2]
[367506670,1750834242965,-500.0,0.00019506,2]
[367506671,1750834242974,-151.0,0.00019506,2]
[367506674,1750834242984,-151.0,0.00019506,2]
[367506675,1750834242993,-151.0,0.00019506,2]
[367506677,1750834243003,-245.85780394,0.00019506,2]
[367506679,1750834243013,-570.95606446,0.00019506,2]
[367506681,1750834243022,-151.0,0.00019534,2]
[367506683,1750834243032,-151.0,0.00019534,2]
[367506685,1750834243041,-349.58172341,0.00019534,2]
[367506687,1750834243050,-350.91885301,0.00019534,2]
[367506689,1750834243059,-500.0,0.00019534,2]
[367506691,1750834243068,-200.01620139,0.00019534,2]
[367506693,1750834243078,-245.0,0.00019534,2]
[367506695,1750834243087,-245.0,0.00019534,2]
[367506697,1750834243096,-460.0,0.00019536,2]
[367506699,1750834243105,-460.0,0.00019536,2]
[367506700,1750834243114,-267.72,0.00019536,2]
[367506703,1750834243123,-460.0,0.00019536,2]
[367506704,1750834243133,-28333.04,0.00019536,2]
[367506706,1750834243142,-1729.3,0.00019536,2]
[367506709,1750834243152,-460.0,0.00019536,2]
[367506711,1750834243161,-460.0,0.00019536,2]
[367506714,1750834243170,-752.41,0.00019536,2]
[367506717,1750834243179,-762.64,0.00019537,2]
[367506720,1750834243189,-460.0,0.00019537,2]
[367506723,1750834243198,-613.34,0.00019537,2]
[367506726,1750834243207,-460.0,0.00019537,2]
[367506728,1750834243216,-978.23,0.00019537,2]
[367506732,1750834243225,-460.0,0.00019537,2]
[367506735,1750834243234,-612.85,0.00019537,2]
[367506738,1750834243243,-564.47,0.00019537,2]
[367506742,1750834243253,-184.38,0.00019537,2]
[367506746,1750834243262,-460.0,0.00019537,2]
[367506749,1750834243271,-460.0,0.00019537,2]
[367506752,1750834243281,-151.0,0.00019561,2]
[367506755,1750834243290,-151.0,0.00019561,2]
[367506758,1750834243299,-500.0,0.00019561,2]
[367506761,1750834243309,-151.0,0.00019589,2]
[367506763,1750834243318,-246.01127713,0.00019589,2]
[367506765,1750834243328,-500.0,0.00019589,2]
[367506767,1750834243337,-2274.63964404,0.0001959,2]
[367506769,1750834243347,-153.055386,0.0001959,2]
[367506771,1750834243356,-1000.0,0.00019605,2]
[367506773,1750834243366,-178.72602344,0.00019616,2]
[367506775,1750834243375,-500.0,0.00019616,2]
[367506777,1750834243385,-848.55,0.00019632,2]
[367506779,1750834243394,-1115.39,0.00019632,2]
[367506780,1750834243403,-1053.33,0.00019632,2]
[367506781,1750834243413,-1132.88,0.00019632,2]
[367506782,1750834243422,-914.59,0.00019632,2]
[367506783,1750834243431,-813.22,0.00019632,2]
[367506784,1750834243441,-1246.56,0.00019632,2]
[367506785,1750834243450,-460.0,0.00019632,2]
[367506786,1750834243460,-700.09,0.00019632,2]
[367506787,1750834243469,-480.274,0.00019634,2]
[367506788,1750834243478,-298.0,0.00019643,2]
[367506789,1750834243594,-151.0,0.000197,2]
[367506790,1750834243616,-1502.16347564,0.00019709,2]
[367506791,1750834243625,-1500.0,0.00019709,2]
[367506792,1750834243634,-223.0,0.00019726,3]
[367506793,1750834243643,-187.0,0.00019752,2]
[367506794,1750834243653,-1500.0,0.00019758,2]
[367506795,1750834243663,-1500.0,0.00019758,2]
[367506796,1750834243672,-285.62279845,0.00019775,2]
[367506797,1750834243682,-187.0,0.0001978,2]
[367506798,1750834243691,-460.0,0.0001981,2]
[367506799,1750834243701,-460.0,0.0001981,2]
[367506800,1750834243711,-460.0,0.0001981,2]
[367506801,1750834243720,-28333.04,0.0001981,2]
[367506802,1750834243729,-1729.3,0.0001981,2]
[367506804,1750834243739,-153.74722362,0.0001981,2]
[367506806,1750834243749,-460.0,0.0001981,2]
[367506808,1750834243758,-752.41,0.0001981,2]
[367506810,1750834243767,-762.64,0.00019811,2]
[367506812,1750834243776,-460.0,0.00019811,2]
[367506814,1750834243785,-613.34,0.00019811,2]
[367506815,1750834243794,-464.91100465,0.00019811,2]
[367506816,1750834243803,-978.23,0.00019811,2]
[367506817,1750834243814,-503.68,0.00019811,2]
[367506818,1750834243825,-612.85,0.00019811,2]
[367506819,1750834243834,-564.47,0.00019811,2]
[367506820,1750834243845,-460.0,0.00019811,2]
[367506821,1750834243854,-460.0,0.00019811,2]
[367506822,1750834243864,-2274.63964404,0.00019831,2]
[367506823,1750834243874,-151.0,0.000199,2]
[367506824,1750834243884,-848.55,0.00019906,2]
[367506825,1750834243893,-1115.39,0.00019906,2]
[367506826,1750834243902,-1053.33,0.00019906,2]
[367506827,1750834243912,-1132.88,0.00019906,2]
[367506828,1750834243922,-914.59,0.00019906,2]
[367506829,1750834243931,-813.22,0.00019906,2]
[367506830,1750834243942,-1246.56,0.00019906,2]
[367506831,1750834243951,-460.0,0.00019906,2]
[367506832,1750834243961,-700.09,0.00019906,2]
[367506833,1750834243970,-215.0738,0.00019986,2]
[367506834,1750834243980,-30866.75602288,0.0002,2]
[367506835,1750834243990,-6453.0,0.0002,5]
[367506836,1750834243999,-300.0,0.0002,2]
[367506837,1750834244008,-300.0,0.0002,2]
[367506838,1750834244018,-151.0,0.0002,4]
[367506839,1750834244028,-2274.63964404,0.00020072,2]
[367506840,1750834244037,-366.0085437,0.00020082,2]
[367506841,1750834244046,-460.0,0.00020084,2]
[367506842,1750834244055,-482.00452957,0.00020084,2]
[367506843,1750834244065,-460.0,0.00020084,2]
[367506844,1750834244074,-28333.04,0.00020084,2]
[367506845,1750834244083,-1729.3,0.00020084,2]
[367506846,1750834244093,-151.0,0.00020084,2]
[367506847,1750834244102,-460.0,0.00020084,2]
[367506848,1750834244111,-151.0,0.00020084,2]
[367506849,1750834244121,-151.0,0.00020084,2]
[367506850,1750834244130,-752.41,0.00020084,2]
[367506851,1750834244140,-151.0,0.00020084,2]
[367506852,1750834244149,-151.0,0.00020084,2]
[367506853,1750834244158,-151.0,0.00020085,2]
[367506854,1750834244168,-151.0,0.00020085,2]
[367506855,1750834244177,-151.0,0.00020085,2]
[367506856,1750834244187,-151.0,0.00020085,2]
[367506857,1750834244196,-151.0,0.00020085,2]
[367506858,1750834244205,-762.64,0.00020085,2]
[367506859,1750834244215,-460.0,0.00020085,2]
[367506860,1750834244224,-613.34,0.00020085,2]
[367506861,1750834244234,-151.0,0.00020085,2]
[367506862,1750834244243,-665.21502,0.00020085,2]
[367506863,1750834244253,-978.23,0.00020085,2]
[367506864,1750834244262,-665.21502,0.00020085,2]
[367506865,1750834244271,-151.0,0.00020085,2]
[367506866,1750834244281,-159.746546,0.00020085,2]
[367506867,1750834244290,-151.0,0.00020085,2]
[367506868,1750834244298,-612.85,0.00020085,2]
[367506869,1750834244308,-159.746546,0.00020085,2]
[367506870,1750834244318,-151.0,0.00020085,2]
[367506871,1750834244327,-151.0,0.00020085,2]
[367506872,1750834244336,-151.0,0.00020085,2]
[367506873,1750834244345,-564.47,0.00020085,2]
[367506874,1750834244355,-151.0,0.00020085,2]
[367506875,1750834244364,-151.0,0.00020085,2]
[367506876,1750834244373,-460.0,0.00020085,2]
[367506877,1750834244382,-151.0,0.00020085,2]
[367506878,1750834244391,-151.0,0.00020085,2]
[367506879,1750834244400,-173.020039,0.00020085,2]
[367506880,1750834244409,-151.0,0.00020085,2]
[367506881,1750834244418,-173.020039,0.00020085,2]
[367506882,1750834244427,-151.0,0.00020085,2]
[367506883,1750834244436,-166.705909,0.00020085,2]
[367506884,1750834244446,-151.0,0.00020085,2]
[367506885,1750834244456,-151.0,0.00020085,2]
[367506886,1750834244465,-166.705909,0.00020085,2]
[367506887,1750834244475,-187.220977,0.00020085,2]
[367506888,1750834244484,-151.0,0.00020085,2]
[367506889,1750834244493,-187.220977,0.00020085,2]
[367506890,1750834244503,-151.0,0.00020085,2]
[367506891,1750834244512,-460.0,0.00020085,2]
[367506892,1750834244521,-151.0,0.00020086,2]
[367506893,1750834244532,-177.914021,0.00020086,2]
[367506894,1750834244542,-254.218059,0.00020086,2]
[367506895,1750834244552,-254.218059,0.00020086,2]
[367506896,1750834244561,-151.0,0.00020088,2]
[367506897,1750834244572,-151.342855,0.00020088,2]
[367506898,1750834244583,-151.0,0.00020088,2]
[367506899,1750834244593,-151.0,0.00020088,2]
[367506900,1750834244602,-476.608385,0.00020088,2]
[367506901,1750834244611,-151.0,0.00020088,2]
[367506902,1750834244621,-476.608385,0.00020088,2]
[367506903,1750834244631,-151.320744,0.00020088,2]
[367506904,1750834244640,-151.0,0.00020088,2]
[367506905,1750834244649,-151.0,0.00020088,2]
[367506906,1750834244659,-151.0,0.000201,4]
[367506907,1750834244668,-861.43909524,0.00020122,2]
[367506908,1750834244677,-587.0,0.00020155,2]
[367506909,1750834244687,-848.55,0.0002018,2]
[367506910,1750834244696,-1115.39,0.0002018,2]
[367506911,1750834244706,-1053.33,0.0002018,2]
[367506912,1750834244715,-1132.88,0.0002018,2]
[367506913,1750834244725,-914.59,0.0002018,2]
[367506914,1750834244734,-813.22,0.0002018,2]
[367506915,1750834244744,-1246.56,0.0002018,2]
[367506916,1750834244753,-460.0,0.0002018,2]
[367506917,1750834244763,-700.09,0.0002018,2]
[367506918,1750834244772,-154.1940999,0.00020227,2]
[367506919,1750834244782,-153.0,0.00020227,2]
[367506920,1750834244791,-153.0,0.00020227,2]
[367506921,1750834244800,-153.0,0.00020227,2]
[367506922,1750834244809,-189.0,0.00020249,2]
[367506923,1750834244819,-1000.0,0.00020257,2]
[367506924,1750834244828,-2000.0,0.00020306,2]
[367506925,1750834244837,-2000.0,0.00020306,2]
[367506926,1750834244847,-2274.63964404,0.00020314,3]
[367506927,1750834244856,-460.0,0.00020358,2]
[367506928,1750834244866,-460.0,0.00020358,2]
[367506929,1750834244875,-28333.04,0.00020358,2]
[367506930,1750834244884,-1729.3,0.00020358,2]
[367506931,1750834244893,-460.0,0.00020358,2]
[367506932,1750834244902,-752.41,0.00020358,2]
[367506933,1750834244911,-762.64,0.00020359,2]
[367506934,1750834244921,-460.0,0.00020359,2]
[367506935,1750834244930,-613.34,0.00020359,2]
[367506936,1750834244939,-978.23,0.00020359,2]
[367506937,1750834244949,-612.85,0.00020359,2]
[367506938,1750834244958,-564.47,0.00020359,2]
[367506939,1750834244967,-460.0,0.00020359,2]
[367506940,1750834244976,-460.0,0.00020359,2]
[367506941,1750834244986,-151.0,0.000204,3]
[367506942,1750834244995,-151.0,0.000204,4]
[367506943,1750834245004,-1379.121214,0.00020411,4]
[367506944,1750834245013,-187.0,0.00020445,2]
[367506945,1750834245024,-848.55,0.00020454,2]
[367506946,1750834245033,-1115.39,0.00020454,2]
[367506947,1750834245043,-1053.33,0.00020454,2]
[367506948,1750834245054,-1132.88,0.00020454,2]
[367506949,1750834245063,-914.59,0.00020454,2]
[367506950,1750834245073,-8.54706252,0.00020454,2]
[367506951,1750834245197,-405.85748006,0.00020454,2]
[367506952,1750834245260,-398.81545742,0.00020454,2]
[367506953,1750834245269,-1246.56,0.00020454,2]
[367506954,1750834245279,-460.0,0.00020454,2]
[367506955,1750834245288,-369.46897148,0.00020454,2]
[367506956,1750834245387,-405.34517072,0.00017892,2]
[367507019,1750834246158,-316.08,0.00016893,2]
[367507055,1750834281965,160.779413,0.00013699,2]
[367507056,1750834395920,3000.0,0.00023,30]
[367507057,1750834413607,1300.0,0.00023,30]
[367507058,1750834451947,220.96164856,0.000222,69]
[367507059,1750834887352,290.21786262,0.000222,69]
[367507061,1750835093192,233.640474,0.0002254,30]
[367507062,1750835099449,3234.99311303,0.00015892,2]
[367507063,1750835099473,15816.29425057,0.00015892,2]
[367507064,1750835267830,160.779413,0.00013699,2]
[367507111,1750835432431,-160.0,0.00016737,2]
[367507113,1750835432446,-243.2038611,0.0001679,2]
[367507115,1750835432455,-167.93,0.00016881,3]
[367507118,1750835432464,-503.83,0.00016881,3]
[367507121,1750835432474,-300.0,0.00016888,2]
[367507123,1750835432485,-300.0,0.00016888,2]
[367507125,1750835432494,-300.0,0.00016888,2]
[367507127,1750835432511,-1200.0,0.00016888,2]
[367507129,1750835432520,-460.0,0.00016888,2]
[367507131,1750835432531,-300.0,0.00016889,2]
[367507133,1750835432540,-460.0,0.00016889,2]
[367507135,1750835432549,-606.18,0.00016889,2]
[367507137,1750835432558,-460.0,0.00016889,2]
[367507139,1750835432567,-460.0,0.00016889,2]
[367507141,1750835432577,-763.1,0.00016889,2]
[367507143,1750835432586,-5855.74,0.00016889,2]
[367507145,1750835432596,-460.0,0.00016889,2]
[367507148,1750835432605,-460.0,0.00016889,2]
[367507150,1750835432614,-1338.01,0.00016889,2]
[367507152,1750835432623,-460.0,0.00016889,2]
[367507154,1750835432632,-1012.65,0.00016889,2]
[367507156,1750835432641,-460.0,0.00016889,2]
[367507157,1750835432650,-6612.54,0.00016889,2]
[367507160,1750835432659,-6069.89,0.00016889,2]
[367507161,1750835432669,-460.0,0.00016889,2]
[367507163,1750835432679,-750.82,0.00016889,2]
[367507165,1750835432688,-533.82,0.00016889,2]
[367507167,1750835432697,-460.0,0.00016889,2]
[367507169,1750835432707,-741.32,0.00016889,2]
[367507171,1750835432716,-509.67,0.00016889,2]
[367507173,1750835432725,-500.0,0.00016889,2]
[367507174,1750835432734,-500.0,0.00016889,2]
[367507176,1750835432743,-500.0,0.00016889,2]
[367507178,1750835432752,-500.0,0.00016889,2]
[367507179,1750835432761,-324.8429073,0.00016889,2]
[367507180,1750835432781,-175.1570927,0.00016889,2]
[367507181,1750835432791,-500.0,0.00016889,2]
[367507182,1750835432800,-500.0,0.00016889,2]
[367507183,1750835432809,-500.0,0.00016889,2]
[367507184,1750835432818,-220.11982132,0.00016889,2]
[367507185,1750835432880,-1935.72351399,0.00016889,2]
[367507186,1750835432890,-460.0,0.0001689,2]
[367507187,1750835432899,-440.0,0.0001689,2]
[367507188,1750835432908,-374.37674352,0.0001689,2]
[367507189,1750835432917,-460.0,0.0001689,2]
[367507190,1750835432927,-460.0,0.0001689,2]
[367507191,1750835432938,-1007.64,0.0001689,2]
[367507192,1750835432947,-460.0,0.0001689,2]
[367507193,1750835432957,-460.0,0.0001689,2]
[367507194,1750835432966,-460.0,0.0001689,2]
[367507195,1750835432975,-460.0,0.0001689,2]
[367507196,1750835432984,-460.0,0.0001689,2]
[367507197,1750835432994,-462.81,0.0001689,2]
[367507198,1750835433003,-460.0,0.0001689,2]
[367507199,1750835433012,-1619.32,0.0001689,2]
[367507200,1750835433022,-460.0,0.0001689,2]
[367507201,1750835433031,-460.0,0.0001689,2]
[367507202,1750835433041,-460.0,0.0001689,2]
[367507203,1750835433051,-460.0,0.0001689,2]
[367507204,1750835433060,-1423.25,0.0001689,2]
[367507205,1750835433070,-460.0,0.0001689,2]
[367507206,1750835433079,-460.0,0.0001689,2]
[367507207,1750835433088,-460.0,0.0001689,2]
[367507208,1750835433098,-460.0,0.0001689,2]
[367507209,1750835433107,-460.0,0.0001689,2]
[367507210,1750835433116,-460.0,0.0001689,2]
[367507211,1750835433126,-460.0,0.0001689,2]
[367507212,1750835433136,-460.0,0.0001689,2]
[367507213,1750835433145,-24791.41,0.0001689,2]
[367507214,1750835433155,-460.0,0.0001689,2]
[367507215,1750835433164,-460.0,0.0001689,2]
[367507216,1750835433174,-1841.29,0.0001689,2]
[367507217,1750835433183,-460.0,0.0001689,2]
[367507218,1750835433192,-460.0,0.0001689,2]
[367507219,1750835433202,-173.87208509,0.0001689,2]
[367507239,1750835438734,-465.54782892,0.00016888,2]
[367507240,1750835438744,-10.91298907,0.00016888,2]
[367507241,1750835438757,-489.08701093,0.00016888,2]
[367507242,1750835438767,-500.0,0.00016888,2]
[367507243,1750835438777,-500.0,0.00016888,2]
[367507244,1750835438787,-500.0,0.00016888,2]
[367507245,1750835438797,-250.98595191,0.00016888,2]
[367507246,1750835438808,-1094.55,0.00016889,2]
[367507247,1750835438818,-430.0,0.00016889,2]
[367507248,1750835438827,-500.0,0.00016889,2]
[367507249,1750835438837,-286.12791491,0.0001689,2]
[367507250,1750835438847,-460.0,0.0001689,2]
[367507251,1750835438857,-610.32,0.0001689,2]
[367507252,1750835438866,-342.49235274,0.00016891,2]
[367507253,1750835438878,-117.50764726,0.00016891,2]
[367507254,1750835438888,-264.776684,0.00016891,2]
[367507255,1750835438897,-460.0,0.00016891,2]
[367507256,1750835438907,-1000.0,0.00016891,2]
[367507257,1750835438916,-460.0,0.00016891,2]
[367507259,1750835438926,-460.0,0.00016891,2]
[367507260,1750835438936,-460.0,0.00016891,2]
[367507261,1750835438945,-283.19185514,0.00016891,2]
[367507262,1750835438955,-543.02,0.00016891,2]
[367507263,1750835438964,-463.34,0.00016891,2]
[367507264,1750835438973,-460.0,0.00016891,2]
[367507265,1750835438982,-460.0,0.00016891,2]
[367507266,1750835438992,-460.0,0.00016891,2]
[367507267,1750835439001,-156.31737783,0.00016891,2]
[367507268,1750835439012,-460.0,0.00016891,2]
[367507269,1750835439021,-460.0,0.00016891,2]
[367507270,1750835439031,-460.0,0.00016891,2]
[367507271,1750835439040,-460.0,0.00016891,2]
[367507272,1750835439049,-471.02291996,0.00016891,2]
[367507273,1750835439059,-390.0,0.00016891,2]
[367507274,1750835439068,-460.0,0.00016891,2]
[367507275,1750835439077,-460.0,0.00016891,2]
[367507276,1750835439087,-500.0,0.00016891,2]
[367507277,1750835439096,-500.0,0.00016891,2]
[367507278,1750835439105,-500.0,0.00016891,2]
[367507279,1750835439114,-460.0,0.00016891,2]
[367507280,1750835439123,-460.0,0.00016891,2]
[367507281,1750835439133,-460.0,0.00016891,2]
[367507282,1750835439142,-527.56,0.00016891,2]